fUST/lending_fUST_20250801
["ID","MTS","AMOUNT","RATE_DAILY","PERIOD"]
[376477675,1753991449267,-833.17,0.0002,2]
[376477677,1753991449278,-296.27567347,0.0002,2]
[376477679,1753991449287,-460.0,0.0002,2]
[376477681,1753991449296,-736.72,0.0002,2]
[376477683,1753991449306,-1856.34,0.0002,2]
[376477685,1753991449315,-460.0,0.0002,2]
[376477687,1753991449324,-791.01,0.0002,2]
[376477689,1753991449333,-182.12607444,0.0002,2]
[376477690,1753991449342,-460.0,0.0002,2]
[376477692,1753991449351,-1964.36,0.0002,2]
[376477694,1753991449361,-1028.7,0.0002,2]
[376477697,1753991449371,-460.0,0.0002,2]
[376477699,1753991449381,-534.04,0.0002,2]
[376477700,1753991449392,-2073.39,0.0002,2]
[376477701,1753991449401,-1824.53,0.0002,2]
[376477702,1753991449410,-881.73,0.0002,2]
[376477703,1753991449419,-872.66,0.0002,2]
[376477704,1753991449429,-953.29,0.0002,2]
[376477705,1753991449439,-166.281299,0.0002,2]
[376477706,1753991449447,-460.0,0.0002,2]
[376477707,1753991449456,-166.281299,0.0002,2]
[376477709,1753991449467,-460.0,0.0002,2]
[376477711,1753991449476,-1690.67,0.0002,2]
[376477713,1753991449485,-460.0,0.0002,2]
[376477715,1753991449495,-460.0,0.0002,2]
[376477717,1753991449509,-642.08,0.0002,2]
[376477719,1753991449519,-460.0,0.0002,2]
[376477721,1753991449529,-388.695195,0.0002,2]
[376477723,1753991449538,-388.695195,0.0002,2]
[376477725,1753991449549,-3921.55,0.0002,2]
[376477727,1753991449560,-264.75515117,0.0002,2]
[376477729,1753991449569,-995.56,0.0002,2]
[376477731,1753991449579,-713.79,0.0002,2]
[376477733,1753991449588,-460.0,0.0002,2]
[376477735,1753991449597,-460.0,0.0002,2]
[376477737,1753991449606,-151.0,0.0002,2]
[376477739,1753991449616,-3837.9,0.0002,2]
[376477741,1753991449624,-2791.51,0.0002,2]
[376477743,1753991449636,-460.0,0.0002,2]
[376477745,1753991449645,-1021.97,0.0002,2]
[376477747,1753991449654,-574.56,0.0002,2]
[376477749,1753991449663,-460.0,0.0002,2]
[376477750,1753991449672,-460.0,0.0002,2]
[376477753,1753991449682,-151.0,0.0002,2]
[376477755,1753991449691,-460.0,0.0002,2]
[376477757,1753991449700,-1304.05,0.0002,2]
[376477759,1753991449709,-460.0,0.0002,2]
[376477761,1753991449718,-800.75,0.0002,2]
[376477762,1753991449727,-292.37138575,0.0002,2]
[376477763,1753991449737,-467.64707366,0.0002,2]
[376477764,1753991449747,-726.6,0.0002,2]
[376477765,1753991449756,-492.75,0.0002,2]
[376477766,1753991449765,-2411.64,0.0002,2]
[376477767,1753991449775,-2771.46,0.0002,2]
[376477768,1753991449785,-890.76,0.0002,2]
[376477769,1753991449794,-860.57,0.0002,2]
[376477770,1753991449803,-460.0,0.0002,2]
[376477772,1753991449812,-460.0,0.0002,2]
[376477774,1753991449823,-199.827413,0.0002,2]
[376477776,1753991449832,-8362.36,0.0002,2]
[376477778,1753991449841,-199.827413,0.0002,2]
[376477780,1753991449850,-887.42,0.0002,2]
[376477782,1753991449859,-151.0,0.0002,2]
[376477784,1753991449868,-224.855213,0.0002,2]
[376477786,1753991449878,-1353.59179478,0.0002,2]
[376477789,1753991449896,-1923.40966462,0.0002,2]
[376477804,1753991450024,-376.7385406,0.0002,2]
[376477806,1753991450034,-878.75,0.0002,2]
[376477808,1753991450043,-151.0,0.0002,2]
[376477810,1753991450053,-151.0,0.0002,2]
[376477812,1753991450062,-460.0,0.0002,2]
[376477814,1753991450071,-460.0,0.0002,2]
[376477815,1753991450080,-460.0,0.0002,2]
[376477818,1753991450089,-199.498351,0.0002,2]
[376477820,1753991450099,-593.65623956,0.0002,2]
[376477822,1753991450108,-151.0,0.0002,2]
[376477824,1753991450117,-460.0,0.0002,2]
[376477826,1753991450127,-3730.22,0.0002,2]
[376477828,1753991450137,-460.0,0.0002,2]
[376477830,1753991450146,-878.18,0.0002,2]
[376477832,1753991450155,-2978.46,0.0002,2]
[376477834,1753991450164,-460.0,0.0002,2]
[376477836,1753991450175,-617.33,0.0002,2]
[376477838,1753991450185,-1163.45,0.0002,2]
[376477840,1753991450194,-2766.0,0.0002,2]
[376477842,1753991450204,-151.0,0.0002,2]
[376477844,1753991450213,-1485.0,0.0002,2]
[376477846,1753991450223,-497.23,0.0002,2]
[376477848,1753991450232,-466.26496919,0.0002,2]
[376477850,1753991450242,-1035.92,0.0002,2]
[376477852,1753991450251,-460.0,0.0002,2]
[376477854,1753991450260,-920.57,0.0002,2]
[376477856,1753991450269,-460.0,0.0002,2]
[376477858,1753991450278,-508.55,0.0002,2]
[376477860,1753991450288,-460.0,0.0002,2]
[376477862,1753991450297,-460.0,0.0002,2]
[376477864,1753991450306,-460.0,0.0002,2]
[376477866,1753991450316,-723.68,0.0002,2]
[376477868,1753991450324,-460.0,0.0002,2]
[376477870,1753991450333,-460.0,0.0002,2]
[376477872,1753991450342,-151.0,0.0002,2]
[376477874,1753991450351,-482.75,0.0002,2]
[376477876,1753991450360,-4000.0,0.0002,4]
[376477878,1753991450369,-855.72,0.0002,2]
[376477880,1753991450379,-460.0,0.0002,2]
[376477882,1753991450391,-460.0,0.0002,2]
[376477884,1753991450400,-1201.33,0.0002,2]
[376477886,1753991450409,-511.46,0.0002,2]
[376477888,1753991450418,-994.83,0.0002,2]
[376477890,1753991450427,-460.0,0.0002,2]
[376477892,1753991450436,-921.03,0.0002,2]
[376477894,1753991450446,-460.0,0.0002,2]
[376477896,1753991450455,-808.59,0.0002,2]
[376477898,1753991450464,-827.83,0.0002,2]
[376477900,1753991450473,-151.0,0.0002,2]
[376477902,1753991450482,-151.0,0.00020038,2]
[376477904,1753991450492,-203.211659,0.00020038,2]
[376477906,1753991450504,-203.211659,0.00020038,2]
[376477908,1753991450513,-300.38131022,0.00020044,2]
[376477910,1753991450522,-151.0,0.00020072,2]
[376477912,1753991450531,-151.0,0.00020072,2]
[376477914,1753991450540,-244.637201,0.00020072,2]
[376477916,1753991450550,-244.637201,0.00020072,2]
[376477918,1753991450559,-151.0,0.00020072,2]
[376477920,1753991450568,-10205.61533991,0.00020072,2]
[376477922,1753991450579,-151.0,0.000201,2]
[376477924,1753991450589,-151.0,0.000201,2]
[376477926,1753991450598,-151.0,0.000201,2]
[376477928,1753991450607,-151.0,0.000201,2]
[376477930,1753991450616,-816.0,0.0002011,2]
[376477932,1753991450625,-628.1231765,0.00020129,2]
[376477934,1753991450634,-160.0,0.00020174,2]
[376477936,1753991450643,-189.937268,0.00020176,2]
[376477938,1753991450653,-366.399104,0.00020187,2]
[376477940,1753991450662,-644.0,0.000202,2]
[376477942,1753991450671,-10205.61533991,0.00020245,2]
[376477944,1753991450680,-151.0,0.00020245,2]
[376477946,1753991450689,-151.0,0.00020245,2]
[376477948,1753991450699,-1500.0,0.00020268,2]
[376477950,1753991450709,-502.59093039,0.00020273,2]
[376477952,1753991450718,-502.77131822,0.00020273,2]
[376477954,1753991450727,-627.03713988,0.00020273,2]
[376477956,1753991450736,-500.0,0.00020273,2]
[376477958,1753991450745,-634.2399284,0.00020273,2]
[376477960,1753991450755,-500.0,0.00020273,2]
[376477962,1753991450764,-503.20984509,0.00020273,2]
[376477964,1753991450773,-151.0,0.00020273,2]
[376477966,1753991450782,-151.0,0.00020273,2]
[376477968,1753991450791,-151.0,0.00020273,2]
[376477970,1753991450800,-151.0,0.00020273,2]
[376477985,1753991450932,-151.0,0.00020273,2]
[376477987,1753991450942,-151.0,0.00020273,2]
[376477989,1753991450952,-151.0,0.00020273,2]
[376477991,1753991450963,-151.0,0.00020273,2]
[376477993,1753991450973,-151.0,0.00020273,2]
[376477996,1753991450983,-151.0,0.00020273,2]
[376477998,1753991450993,-151.0,0.00020273,2]
[376478000,1753991451002,-151.0,0.00020273,2]
[376478002,1753991451012,-151.0,0.00020273,2]
[376478004,1753991451021,-221.422238,0.00020273,2]
[376478006,1753991451030,-151.0,0.00020273,2]
[376478008,1753991451040,-151.0,0.00020273,2]
[376478010,1753991451049,-151.0,0.00020273,2]
[376478012,1753991451058,-151.0,0.00020273,2]
[376478014,1753991451067,-178.903722,0.00020273,2]
[376478016,1753991451077,-234.761685,0.00020273,2]
[376478018,1753991451086,-151.0,0.00020273,2]
[376478020,1753991451096,-151.0,0.00020273,2]
[376478022,1753991451105,-151.0,0.00020273,2]
[376478024,1753991451114,-151.0,0.00020273,2]
[376478026,1753991451124,-151.0,0.00020273,2]
[376478028,1753991451133,-151.0,0.00020273,2]
[376478030,1753991451146,-151.0,0.00020273,2]
[376478032,1753991451155,-151.0,0.00020273,2]
[376478034,1753991451165,-189.263336,0.00020273,2]
[376478036,1753991451174,-189.263336,0.00020273,2]
[376478038,1753991451183,-151.0,0.00020273,2]
[376478040,1753991451193,-203.211659,0.00020273,2]
[376478042,1753991451202,-203.211659,0.00020273,2]
[376478045,1753991451212,-460.0,0.00020273,2]
[376478047,1753991451221,-151.0,0.00020273,2]
[376478049,1753991451230,-151.0,0.00020273,2]
[376478050,1753991451240,-460.0,0.00020273,2]
[376478052,1753991451249,-460.0,0.00020273,2]
[376478054,1753991451258,-460.0,0.00020273,2]
[376478056,1753991451267,-151.0,0.00020273,2]
[376478058,1753991451278,-151.303853,0.00020273,2]
[376478060,1753991451288,-151.0,0.00020273,2]
[376478062,1753991451297,-151.0,0.00020273,2]
[376478064,1753991451307,-460.0,0.00020273,2]
[376478066,1753991451316,-333.18471453,0.00020273,2]
[376478068,1753991451325,-384.31340458,0.00020273,2]
[376478070,1753991451335,-460.0,0.00020273,2]
[376478072,1753991451344,-595.04,0.00020273,2]
[376478074,1753991451354,-152.530567,0.00020273,2]
[376478076,1753991451363,-1401.436201,0.00020273,2]
[376478078,1753991451372,-1401.436201,0.00020273,2]
[376478080,1753991451381,-606.49,0.00020273,2]
[376478083,1753991451397,-151.0,0.00020273,2]
[376478084,1753991451406,-151.0,0.00020273,2]
[376478086,1753991451416,-151.0,0.00020273,2]
[376478088,1753991451425,-575.94,0.00020273,2]
[376478090,1753991451434,-151.0,0.00020273,2]
[376478092,1753991451443,-743.5,0.00020273,2]
[376478094,1753991451452,-524.53,0.00020273,2]
[376478096,1753991451460,-1106.86,0.00020273,2]
[376478098,1753991451469,-288.914754,0.00020273,2]
[376478100,1753991451479,-151.0,0.00020273,2]
[376478102,1753991451488,-460.0,0.00020273,2]
[376478104,1753991451504,-449.19557539,0.00020273,2]
[376478107,1753991451520,-111.36442461,0.00020273,2]
[376478109,1753991451529,-356.84535085,0.00020273,2]
[376478111,1753991451541,-103.15464915,0.00020273,2]
[376478113,1753991451553,-460.0,0.00020273,2]
[376478115,1753991451562,-460.0,0.00020273,2]
[376478117,1753991451572,-130.00491274,0.00020273,2]
[376478120,1753991451583,-406.25508726,0.00020273,2]
[376478122,1753991451594,-151.0,0.00020273,2]
[376478124,1753991451603,-151.0,0.00020273,2]
[376478126,1753991451612,-105.58336224,0.00020273,2]
[376478128,1753991451624,-464.05710076,0.00020273,2]
[376478130,1753991451633,-704.63,0.00020273,2]
[376478132,1753991451646,-569.640463,0.00020273,2]
[376478134,1753991451655,-460.0,0.00020273,2]
[376478136,1753991451665,-488.99,0.00020273,2]
[376478138,1753991451675,-460.0,0.00020273,2]
[376478140,1753991451684,-460.0,0.00020273,2]
[376478142,1753991451692,-151.0,0.00020273,2]
[376478144,1753991451702,-338.405847,0.00020273,2]
[376478146,1753991451711,-460.0,0.00020273,2]
[376478148,1753991451720,-151.0,0.00020273,2]
[376478150,1753991451729,-338.405847,0.00020273,2]
[376478152,1753991451738,-460.0,0.00020273,2]
[376478154,1753991451747,-460.0,0.00020273,2]
[376478156,1753991451756,-737.34,0.00020273,2]
[376478158,1753991451765,-460.0,0.00020273,2]
[376478160,1753991451774,-259.961064,0.00020273,2]
[376478162,1753991451783,-259.961064,0.00020273,2]
[376478164,1753991451792,-568.32,0.00020273,2]
[376478166,1753991451801,-525.69,0.00020273,2]
[376478168,1753991451810,-460.0,0.00020273,2]
[376478170,1753991451819,-460.0,0.00020273,2]
[376478172,1753991451828,-460.0,0.00020273,2]
[376478174,1753991451838,-460.0,0.00020273,2]
[376478176,1753991451847,-460.0,0.00020273,2]
[376478178,1753991451856,-3017.45,0.00020273,2]
[376478180,1753991451865,-460.0,0.00020273,2]
[376478182,1753991451874,-460.0,0.00020273,2]
[376478184,1753991451884,-497.4,0.00020273,2]
[376478187,1753991451896,-460.0,0.00020273,2]
[376478188,1753991451905,-8884.18,0.00020273,2]
[376478190,1753991451914,-460.0,0.00020273,2]
[376478193,1753991451923,-668.54,0.00020273,2]
[376478194,1753991451933,-766.5,0.00020273,2]
[376478196,1753991451942,-460.0,0.00020273,2]
[376478198,1753991451950,-197.3093727,0.00020273,2]
[376478242,1753991452345,-275.7653766,0.00019178,2]
[376478245,1753991452361,-184.2346234,0.00019178,2]
[376478247,1753991452370,-460.0,0.00019178,2]
[376478249,1753991452379,-285.28,0.00019452,2]
[376478251,1753991452389,-407.0,0.00019514,2]
[376478253,1753991452399,-635.8606273,0.00020273,2]
[376478255,1753991452408,-460.0,0.00020273,2]
[376478257,1753991452417,-736.72,0.00020273,2]
[376478259,1753991452427,-1856.34,0.00020273,2]
[376478261,1753991452436,-791.01,0.00020273,2]
[376478263,1753991452445,-460.0,0.00020273,2]
[376478265,1753991452456,-1964.36,0.00020273,2]
[376478267,1753991452465,-1028.7,0.00020273,2]
[376478269,1753991452474,-460.0,0.00020273,2]
[376478271,1753991452483,-2073.39,0.00020273,2]
[376478273,1753991452493,-534.04,0.00020273,2]
[376478275,1753991452503,-1824.53,0.00020273,2]
[376478277,1753991452513,-881.73,0.00020273,2]
[376478279,1753991452523,-953.29,0.00020273,2]
[376478281,1753991452532,-166.281299,0.00020273,2]
[376478283,1753991452541,-460.0,0.00020273,2]
[376478285,1753991452552,-166.281299,0.00020273,2]
[376478287,1753991452561,-460.0,0.00020273,2]
[376478288,1753991452570,-1690.67,0.00020273,2]
[376478290,1753991452579,-443.02063579,0.00020273,2]
[376478292,1753991452588,-460.0,0.00020273,2]
[376478295,1753991452598,-642.08,0.00020273,2]
[376478296,1753991452607,-460.0,0.00020273,2]
[376478298,1753991452618,-388.695195,0.00020273,2]
[376478300,1753991452633,-388.695195,0.00020273,2]
[376478302,1753991452648,-1685.79112551,0.00020273,2]
[376478305,1753991452660,-2235.75887449,0.00020273,2]
[376478307,1753991452670,-995.56,0.00020273,2]
[376478309,1753991452679,-713.79,0.00020273,2]
[376478311,1753991452689,-460.0,0.00020273,2]
[376478313,1753991452698,-460.0,0.00020273,2]
[376478314,1753991452707,-151.0,0.00020273,2]
[376478316,1753991452716,-768.32285182,0.00020273,2]
[376478431,1753992206579,24900.0,0.00018176,2]
[376478432,1753992368621,347.479509,0.00013699,2]
[376478434,1753992575261,5000.0,0.0001878,2]
[376478454,1753992638924,-150.0,0.000189,2]
[376478455,1753992638933,-156.4720611,0.00018963,2]
[376478456,1753992638943,-160.0,0.00019052,2]
[376478457,1753992638953,-471.09238241,0.00019073,2]
[376478458,1753992638962,-551.0,0.00019077,2]
[376478459,1753992638972,-1200.0,0.00019077,2]
[376478460,1753992638981,-300.0,0.00019077,2]
[376478461,1753992638990,-624.75909824,0.00019078,2]
[376478462,1753992639000,-1896.03946546,0.00019078,2]
[376478463,1753992639010,-6166.63699279,0.00019078,2]
[376478465,1753992639023,-3041.52248434,0.00019078,2]
[376478468,1753992639046,-10791.84052287,0.00019078,2]
[376478469,1753992639056,-151.0,0.00019166,2]
[376478470,1753992639067,-584.05195558,0.00019166,2]
[376478472,1753992639076,-160.10752155,0.00019173,2]
[376478474,1753992639088,-339.89247845,0.00019173,2]
[376478476,1753992639098,-237.69986304,0.00019173,2]
[376478478,1753992639108,-500.0,0.00019173,2]
[376478480,1753992639117,-500.0,0.00019173,2]
[376478482,1753992639127,-500.0,0.00019173,2]
[376478484,1753992639136,-207.31797453,0.00019173,2]
[376478486,1753992639145,-500.0,0.00019173,2]
[376478488,1753992639161,-500.0,0.00019173,2]
[376478490,1753992639171,-500.0,0.00019173,2]
[376478492,1753992639180,-312.89702064,0.00019173,2]
[376478494,1753992639191,-187.10297936,0.00019173,2]
[376478496,1753992639200,-159.81506119,0.00019173,2]
[376478498,1753992639210,-507.02003151,0.00019173,2]
[376478500,1753992639219,-500.0,0.00019173,2]
[376478501,1753992639229,-500.42481592,0.00019173,2]
[376478503,1753992639238,-538.47456461,0.00019173,2]
[376478505,1753992639247,-501.16152977,0.00019173,2]
[376478507,1753992639257,-500.0,0.00019173,2]
[376478509,1753992639266,-500.59873471,0.00019173,2]
[376478511,1753992639275,-320.33506374,0.00019173,2]
[376478513,1753992639285,-500.84356237,0.00019173,2]
[376478515,1753992639294,-500.0,0.00019173,2]
[376478517,1753992639303,-500.0,0.00019173,2]
[376478519,1753992639312,-500.0,0.00019177,2]
[376478521,1753992639321,-500.0,0.00019177,2]
[376478523,1753992639330,-500.0,0.00019177,2]
[376478524,1753992639340,-643.66207635,0.00019177,2]
[376478526,1753992639349,-500.0,0.00019177,2]
[376478528,1753992639358,-500.0,0.00019177,2]
[376478530,1753992639368,-500.0,0.00019177,2]
[376478550,1753992639548,-500.0,0.00019177,2]
[376478552,1753992639558,-165.07601252,0.00019177,2]
[376478554,1753992639568,-500.0,0.00019177,2]
[376478556,1753992639577,-609.46404475,0.00019177,2]
[376478558,1753992639586,-500.0,0.00019177,2]
[376478560,1753992639595,-449.85309284,0.00019177,2]
[376478562,1753992639605,-500.0,0.00019177,2]
[376478564,1753992639614,-500.0,0.00019177,2]
[376478566,1753992639623,-500.0,0.00019177,2]
[376478568,1753992639633,-500.0,0.00019177,2]
[376478570,1753992639642,-500.0,0.00019177,2]
[376478572,1753992639654,-500.0,0.00019177,2]
[376478574,1753992639663,-500.0,0.00019177,2]
[376478576,1753992639672,-500.0,0.00019177,2]
[376478578,1753992639682,-500.0,0.00019177,2]
[376478580,1753992639691,-500.0,0.00019177,2]
[376478582,1753992639700,-647.84342074,0.00019177,2]
[376478584,1753992639710,-423.75865172,0.00019177,2]
[376478594,1753992639791,-76.24134828,0.00019177,2]
[376478596,1753992639800,-500.0,0.00019177,2]
[376478598,1753992639809,-500.0,0.00019177,2]
[376478600,1753992639818,-500.0,0.00019177,2]
[376478602,1753992639827,-500.0,0.00019177,2]
[376478604,1753992639837,-500.0,0.00019177,2]
[376478607,1753992639846,-500.0,0.00019177,2]
[376478608,1753992639855,-500.0,0.00019177,2]
[376478610,1753992639865,-250.0,0.00019177,2]
[376478612,1753992639875,-460.0,0.00019178,2]
[376478615,1753992639886,-460.0,0.00019178,2]
[376478619,1753992639898,-460.0,0.00019178,2]
[376478621,1753992639908,-462.07969999,0.00019178,2]
[376478623,1753992639918,-307.87917077,0.00019178,2]
[376478624,1753992639927,-460.0,0.00019178,2]
[376478627,1753992639936,-460.0,0.00019178,2]
[376478628,1753992639946,-460.0,0.00019178,2]
[376478631,1753992639956,-460.0,0.00019178,2]
[376478633,1753992639966,-500.0,0.00019178,2]
[376478635,1753992639975,-500.0,0.00019178,2]
[376478638,1753992639984,-500.0,0.00019178,2]
[376478639,1753992639993,-500.0,0.00019178,2]
[376478642,1753992640002,-470.96584799,0.00019178,2]
[376478645,1753992640012,-460.0,0.00019178,2]
[376478647,1753992640022,-460.0,0.00019178,2]
[376478649,1753992640031,-460.0,0.00019178,2]
[376478651,1753992640040,-460.0,0.00019178,2]
[376478654,1753992640050,-460.0,0.00019178,2]
[376478657,1753992640059,-460.0,0.00019178,2]
[376478660,1753992640069,-518.28,0.00019178,2]
[376478662,1753992640078,-460.0,0.00019178,2]
[376478665,1753992640087,-339.47919734,0.00019178,2]
[376478668,1753992640097,-460.0,0.00019178,2]
[376478671,1753992640106,-462.31699979,0.00019178,2]
[376478673,1753992640115,-164.29486048,0.00019178,2]
[376478675,1753992640124,-460.0,0.00019178,2]
[376478677,1753992640133,-460.0,0.00019178,2]
[376478679,1753992640143,-460.97292052,0.00019178,2]
[376478682,1753992640154,-460.0,0.00019178,2]
[376478685,1753992640163,-469.30733775,0.00019178,2]
[376478688,1753992640172,-460.0,0.00019178,2]
[376478691,1753992640182,-460.0,0.00019178,2]
[376478693,1753992640191,-460.0,0.00019178,2]
[376478695,1753992640200,-284.92558626,0.00019178,2]
[376478697,1753992640209,-460.0,0.00019178,2]
[376478699,1753992640218,-460.0,0.00019178,2]
[376478701,1753992640228,-460.0,0.00019178,2]
[376478703,1753992640237,-461.1280805,0.00019178,2]
[376478705,1753992640246,-461.13540342,0.00019178,2]
[376478707,1753992640255,-460.0,0.00019178,2]
[376478709,1753992640264,-259.58364525,0.00019178,2]
[376478711,1753992640274,-508.1,0.00019178,2]
[376478713,1753992640283,-460.6024814,0.00019178,2]
[376478715,1753992640293,-460.0,0.00019178,2]
[376478717,1753992640302,-460.0,0.00019178,2]
[376478719,1753992640311,-460.0,0.00019178,2]
[376478721,1753992640321,-460.0,0.00019178,2]
[376478723,1753992640330,-460.0,0.00019178,2]
[376478725,1753992640339,-460.0,0.00019178,2]
[376478727,1753992640347,-460.0,0.00019178,2]
[376478729,1753992640356,-460.0,0.00019178,2]
[376478731,1753992640365,-460.0,0.00019178,2]
[376478733,1753992640375,-460.0,0.00019178,2]
[376478735,1753992640384,-192.14130852,0.00019178,2]
[376478737,1753992640392,-460.0,0.00019178,2]
[376478739,1753992640403,-460.0,0.00019178,2]
[376478741,1753992640412,-289.3656507,0.00019178,2]
[376478743,1753992640421,-460.0,0.00019178,2]
[376478745,1753992640429,-460.0,0.00019178,2]
[376478747,1753992640438,-460.0,0.00019178,2]
[376478749,1753992640447,-460.0,0.00019178,2]
[376478751,1753992640456,-460.0,0.00019178,2]
[376478753,1753992640465,-460.0,0.00019178,2]
[376478755,1753992640474,-460.0,0.00019178,2]
[376478757,1753992640483,-460.0,0.00019178,2]
[376478759,1753992640493,-460.0,0.00019178,2]
[376478761,1753992640501,-460.0,0.00019178,2]
[376478763,1753992640511,-460.0,0.00019178,2]
[376478765,1753992640521,-500.0,0.00019178,2]
[376478767,1753992640530,-550.71239628,0.00019178,2]
[376478769,1753992640539,-460.0,0.00019178,2]
[376478771,1753992640548,-460.0,0.00019178,2]
[376478773,1753992640558,-460.0,0.00019178,2]
[376478775,1753992640567,-460.0,0.00019178,2]
[376478777,1753992640577,-460.0,0.00019178,2]
[376478779,1753992640586,-460.0,0.00019178,2]
[376478781,1753992640595,-460.0,0.00019178,2]
[376478783,1753992640605,-460.0,0.00019178,2]
[376478785,1753992640614,-460.0,0.00019178,2]
[376478787,1753992640624,-170.68107786,0.00019178,2]
[376478789,1753992640633,-460.0,0.00019178,2]
[376478791,1753992640642,-356.76579242,0.00019178,2]
[376478793,1753992640654,-460.0,0.00019178,2]
[376478795,1753992640663,-460.0,0.00019178,2]
[376478797,1753992640672,-460.0,0.00019178,2]
[376478799,1753992640682,-460.0,0.00019178,2]
[376478801,1753992640691,-460.0,0.00019178,2]
[376478803,1753992640702,-461.36874443,0.00019178,2]
[376478805,1753992640713,-460.0,0.00019178,2]
[376478807,1753992640722,-460.0,0.00019178,2]
[376478809,1753992640732,-460.0,0.00019178,2]
[376478811,1753992640741,-460.0,0.00019178,2]
[376478813,1753992640751,-460.0,0.00019178,2]
[376478815,1753992640760,-460.0,0.00019178,2]
[376478817,1753992640769,-460.0,0.00019178,2]
[376478819,1753992640779,-460.0,0.00019178,2]
[376478821,1753992640788,-460.0,0.00019178,2]
[376478823,1753992640797,-460.0,0.00019178,2]
[376478825,1753992640806,-460.0,0.00019178,2]
[376478827,1753992640815,-460.0,0.00019178,2]
[376478829,1753992640826,-460.0,0.00019178,2]
[376478831,1753992640835,-460.0,0.00019178,2]
[376478833,1753992640844,-460.0,0.00019178,2]
[376478835,1753992640853,-460.0,0.00019178,2]
[376478837,1753992640862,-460.0,0.00019178,2]
[376478839,1753992640872,-460.0,0.00019178,2]
[376478841,1753992640886,-460.0,0.00019178,2]
[376478843,1753992640897,-460.0,0.00019178,2]
[376478845,1753992640906,-1082.89,0.00019178,2]
[376478847,1753992640917,-472.3873183,0.00019178,2]
[376478849,1753992640927,-460.0,0.00019178,2]
[376478851,1753992640936,-834.81,0.00019178,2]
[376478853,1753992640946,-460.0,0.00019178,2]
[376478855,1753992640956,-543.74,0.00019178,2]
[376478857,1753992640965,-460.0,0.00019178,2]
[376478859,1753992640974,-460.0,0.00019178,2]
[376478861,1753992640983,-462.19200737,0.00019178,2]
[376478863,1753992640993,-460.0,0.00019178,2]
[376478865,1753992641002,-460.0,0.00019178,2]
[376478867,1753992641011,-460.0,0.00019178,2]
[376478869,1753992641021,-461.68821846,0.00019178,2]
[376478871,1753992641030,-484.99673636,0.00019178,2]
[376478874,1753992641043,-460.0,0.00019178,2]
[376478876,1753992641063,-460.0,0.00019178,2]
[376478878,1753992641075,-460.0,0.00019178,2]
[376478880,1753992641084,-461.90822737,0.00019178,2]
[376478882,1753992641094,-178.569116,0.00019178,10]
[376478883,1753992641102,-640.74,0.00019178,2]
[376478886,1753992641113,-460.0,0.00019178,2]
[376478888,1753992641122,-460.0,0.00019178,2]